fUSD/lending_fUSD_20240907
["ID","MTS","AMOUNT","RATE_DAILY","PERIOD"]
[337502507,1725720642839,-1107.27,0.00014999,2]
[337502508,1725720642849,-1107.27,0.00014999,2]
[337502509,1725720642859,-1107.27,0.00014999,2]
[337502510,1725720642868,-1107.27,0.00014999,2]
[337502511,1725720642877,-1107.27,0.00014999,2]
[337502512,1725720642887,-1107.27,0.00014999,2]
[337502513,1725720642896,-1107.27,0.00014999,2]
[337502514,1725720642905,-1107.27,0.00014999,2]
[337502515,1725720642915,-1107.46,0.00014999,2]
[337502516,1725720642925,-980.06,0.00014999,2]
[337502517,1725720642935,-980.06,0.00014999,2]
[337502518,1725720642944,-980.06,0.00014999,2]
[337502519,1725720642953,-980.06,0.00014999,2]
[337502520,1725720642964,-980.06,0.00014999,2]
[337502522,1725720642977,-980.06,0.00014999,2]
[337502523,1725720642987,-980.06,0.00014999,2]
[337502524,1725720642998,-980.06,0.00014999,2]
[337502525,1725720643007,-980.06,0.00014999,2]
[337502526,1725720643018,-980.06,0.00014999,2]
[337502527,1725720643028,-980.06,0.00014999,2]
[337502528,1725720643037,-980.06,0.00014999,2]
[337502529,1725720643046,-980.06,0.00014999,2]
[337502530,1725720643057,-980.06,0.00014999,2]
[337502531,1725720643066,-980.06,0.00014999,2]
[337502532,1725720643075,-980.06,0.00014999,2]
[337502533,1725720643083,-980.06,0.00014999,2]
[337502534,1725720643092,-980.06,0.00014999,2]
[337502535,1725720643101,-980.06,0.00014999,2]
[337502536,1725720643110,-980.06,0.00014999,2]
[337502537,1725720643120,-980.1,0.00014999,2]
[337502538,1725720643129,-500.0,0.00014999,2]
[337502539,1725720643138,-500.0,0.00014999,2]
[337502540,1725720643148,-500.0,0.00014999,2]
[337502541,1725720643157,-500.0,0.00014999,2]
[337502542,1725720643167,-500.0,0.00014999,2]
[337502543,1725720643177,-708.65,0.00014999,2]
[337502544,1725720643186,-500.0,0.00014999,2]
[337502545,1725720643196,-708.65,0.00014999,2]
[337502546,1725720643206,-500.0,0.00014999,2]
[337502547,1725720643215,-708.65,0.00014999,2]
[337502548,1725720643224,-500.0,0.00014999,2]
[337502549,1725720643234,-708.65,0.00014999,2]
[337502550,1725720643243,-500.0,0.00014999,2]
[337502551,1725720643252,-708.65,0.00014999,2]
[337502552,1725720643261,-190.65,0.00014999,2]
[337502553,1725720643270,-708.65,0.00014999,2]
[337502554,1725720643279,-708.65,0.00014999,2]
[337502555,1725720643289,-708.65,0.00014999,2]
[337502556,1725720643298,-708.65,0.00014999,2]
[337502557,1725720643308,-708.65,0.00014999,2]
[337502558,1725720643317,-708.65,0.00014999,2]
[337502559,1725720643326,-708.65,0.00014999,2]
[337502560,1725720643336,-708.65,0.00014999,2]
[337502561,1725720643345,-708.65,0.00014999,2]
[337502562,1725720643355,-708.65,0.00014999,2]
[337502563,1725720643364,-708.65,0.00014999,2]
[337502564,1725720643374,-500.0,0.00014999,2]
[337502566,1725720643383,-708.65,0.00014999,2]
[337502568,1725720643392,-500.0,0.00014999,2]
[337502570,1725720643401,-708.65,0.00014999,2]
[337502572,1725720643411,-500.0,0.00014999,2]
[337502574,1725720643422,-708.65,0.00014999,2]
[337502576,1725720643431,-500.0,0.00014999,2]
[337502578,1725720643441,-708.65,0.00014999,2]
[337502580,1725720643450,-500.0,0.00014999,2]
[337502583,1725720643459,-708.84,0.00014999,2]
[337502586,1725720643468,-500.0,0.00014999,2]
[337502589,1725720643477,-500.0,0.00014999,2]
[337502591,1725720643486,-500.0,0.00014999,2]
[337502593,1725720643496,-500.0,0.00014999,2]
[337502595,1725720643505,-517.85,0.00014999,2]
[337502597,1725720643514,-500.0,0.00014999,2]
[337502598,1725720643523,-531.55,0.00014999,2]
[337502600,1725720643532,-500.0,0.00014999,2]
[337502602,1725720643541,-500.0,0.00014999,2]
[337502604,1725720643551,-500.0,0.00014999,2]
[337502606,1725720643562,-502.64505133,0.00014999,2]
[337502608,1725720643571,-500.0,0.00014999,2]
[337502610,1725720643580,-500.0,0.00014999,2]
[337502612,1725720643590,-500.0,0.00014999,2]
[337502614,1725720643599,-500.0,0.00014999,2]
[337502616,1725720643608,-500.0,0.00014999,2]
[337502618,1725720643618,-500.0,0.00014999,2]
[337502620,1725720643627,-500.0,0.00014999,2]
[337502622,1725720643636,-500.0,0.00014999,2]
[337502624,1725720643646,-327.93,0.00014999,2]
[337502626,1725720643655,-610.88,0.00014999,2]
[337502628,1725720643665,-610.88,0.00014999,2]
[337502630,1725720643674,-610.88,0.00014999,2]
[337502632,1725720643683,-610.88,0.00014999,2]
[337502634,1725720643693,-610.88,0.00014999,2]
[337502636,1725720643703,-610.88,0.00014999,2]
[337502638,1725720643712,-610.88,0.00014999,2]
[337502640,1725720643722,-610.88,0.00014999,2]
[337502642,1725720643731,-610.88,0.00014999,2]
[337502644,1725720643740,-610.88,0.00014999,2]
[337502646,1725720643751,-610.88,0.00014999,2]
[337502648,1725720643762,-610.88,0.00014999,2]
[337502650,1725720643772,-610.88,0.00014999,2]
[337502652,1725720643783,-786.05,0.00014999,2]
[337502654,1725720643793,-610.88,0.00014999,2]
[337502656,1725720643806,-500.0,0.00014999,2]
[337502658,1725720643816,-610.88,0.00014999,2]
[337502660,1725720643825,-500.0,0.00014999,2]
[337502662,1725720643834,-610.88,0.00014999,2]
[337502664,1725720643844,-786.05,0.00014999,2]
[337502666,1725720643853,-500.0,0.00014999,2]
[337502668,1725720643862,-610.88,0.00014999,2]
[337502670,1725720643872,-786.05,0.00014999,2]
[337502672,1725720643881,-500.0,0.00014999,2]
[337502674,1725720643891,-610.88,0.00014999,2]
[337502676,1725720643900,-786.05,0.00014999,2]
[337502678,1725720643910,-500.0,0.00014999,2]
[337502680,1725720643919,-610.88,0.00014999,2]
[337502682,1725720643928,-786.05,0.00014999,2]
[337502684,1725720643938,-500.0,0.00014999,2]
[337502686,1725720643947,-610.88,0.00014999,2]
[337502687,1725720643957,-786.05,0.00014999,2]
[337502689,1725720643966,-500.0,0.00014999,2]
[337502691,1725720643977,-611.04,0.00014999,2]
[337502693,1725720643989,-786.05,0.00014999,2]
[337502695,1725720643998,-500.0,0.00014999,2]
[337502697,1725720644007,-786.05,0.00014999,2]
[337502699,1725720644017,-500.0,0.00014999,2]
[337502701,1725720644027,-786.05,0.00014999,2]
[337502703,1725720644037,-500.0,0.00014999,2]
[337502705,1725720644047,-786.05,0.00014999,2]
[337502707,1725720644059,-500.0,0.00014999,2]
[337502709,1725720644069,-786.05,0.00014999,2]
[337502711,1725720644078,-500.0,0.00014999,2]
[337502713,1725720644087,-786.05,0.00014999,2]
[337502715,1725720644097,-500.0,0.00014999,2]
[337502717,1725720644107,-786.05,0.00014999,2]
[337502719,1725720644116,-500.0,0.00014999,2]
[337502721,1725720644125,-786.05,0.00014999,2]
[337502723,1725720644135,-500.0,0.00014999,2]
[337502725,1725720644145,-786.05,0.00014999,2]
[337502727,1725720644155,-500.0,0.00014999,2]
[337502729,1725720644165,-786.05,0.00014999,2]
[337502731,1725720644175,-500.0,0.00014999,2]
[337502733,1725720644184,-786.05,0.00014999,2]
[337502735,1725720644194,-500.00000088,0.00014999,2]
[337502737,1725720644204,-500.0,0.00014999,2]
[337502739,1725720644214,-786.05,0.00014999,2]
[337502741,1725720644224,-500.0,0.00014999,2]
[337502743,1725720644234,-500.0,0.00014999,2]
[337502745,1725720644243,-786.05,0.00014999,2]
[337502747,1725720644253,-500.0,0.00014999,2]
[337502749,1725720644263,-786.05,0.00014999,2]
[337502751,1725720644273,-500.0,0.00014999,2]
[337502753,1725720644283,-786.07,0.00014999,2]
[337502755,1725720644292,-500.0,0.00014999,2]
[337502757,1725720644302,-500.0,0.00014999,2]
[337502759,1725720644313,-258.55,0.00014999,2]
[337502761,1725720644322,-500.0,0.00014999,2]
[337502763,1725720644332,-500.0,0.00014999,2]
[337502765,1725720644341,-500.0,0.00014999,2]
[337502766,1725720644351,-824.65,0.00014999,2]
[337502768,1725720644361,-500.0,0.00014999,2]
[337502776,1725720644505,-824.65,0.00014999,2]
[337502777,1725720644516,-500.0,0.00014999,2]
[337502778,1725720644526,-824.65,0.00014999,2]
[337502779,1725720644536,-824.65,0.00014999,2]
[337502780,1725720644547,-500.0,0.00014999,2]
[337502782,1725720644556,-824.65,0.00014999,2]
[337502784,1725720644565,-500.0,0.00014999,2]
[337502786,1725720644574,-824.65,0.00014999,2]
[337502788,1725720644584,-500.0,0.00014999,2]
[337502789,1725720644593,-824.65,0.00014999,2]
[337502791,1725720644602,-500.0,0.00014999,2]
[337502793,1725720644612,-824.65,0.00014999,2]
[337502795,1725720644622,-213.95,0.00014999,2]
[337502797,1725720644632,-824.65,0.00014999,2]
[337502799,1725720644642,-824.65,0.00014999,2]
[337502801,1725720644652,-824.65,0.00014999,2]
[337502803,1725720644662,-824.65,0.00014999,2]
[337502805,1725720644672,-824.65,0.00014999,2]
[337502807,1725720644682,-824.65,0.00014999,2]
[337502809,1725720644692,-824.65,0.00014999,2]
[337502811,1725720644702,-824.65,0.00014999,2]
[337502813,1725720644713,-824.65,0.00014999,2]
[337502816,1725720644725,-824.65,0.00014999,2]
[337502818,1725720644735,-500.0,0.00014999,2]
[337502820,1725720644745,-824.65,0.00014999,2]
[337502822,1725720644756,-500.0,0.00014999,2]
[337502824,1725720644765,-824.65,0.00014999,2]
[337502826,1725720644776,-500.0,0.00014999,2]
[337502828,1725720644786,-824.66140754,0.00014999,2]
[337502830,1725720644796,-500.0,0.00014999,2]
[337502832,1725720644807,-500.0,0.00014999,2]
[337502834,1725720644816,-500.0,0.00014999,2]
[337502836,1725720644825,-500.0,0.00014999,2]
[337502838,1725720644834,-500.0,0.00014999,2]
[337502839,1725720644842,-500.0,0.00014999,2]
[337502841,1725720644852,-500.0,0.00014999,2]
[337502843,1725720644862,-500.0,0.00014999,2]
[337502845,1725720644872,-500.0,0.00014999,2]
[337502847,1725720644881,-638.4,0.00014999,2]
[337502849,1725720644890,-500.0,0.00014999,2]
[337502851,1725720644900,-500.0,0.00014999,2]
[337502853,1725720644909,-500.0,0.00014999,2]
[337502855,1725720644918,-500.0,0.00014999,2]
[337502857,1725720644927,-500.0,0.00014999,2]
[337502859,1725720644937,-500.0,0.00014999,2]
[337502861,1725720644946,-500.0,0.00014999,2]
[337502862,1725720644955,-500.0,0.00014999,2]
[337502864,1725720644964,-500.0,0.00014999,2]
[337502866,1725720644973,-500.0,0.00014999,2]
[337502868,1725720644986,-500.0,0.00014999,2]
[337502870,1725720644995,-500.0,0.00014999,2]
[337502872,1725720645004,-500.0,0.00014999,2]
[337502874,1725720645013,-500.0,0.00014999,2]
[337502876,1725720645023,-500.0,0.00014999,2]
[337502878,1725720645032,-500.0,0.00014999,2]
[337502880,1725720645042,-500.0,0.00014999,2]
[337502882,1725720645052,-500.0,0.00014999,2]
[337502884,1725720645064,-500.0,0.00014999,2]
[337502886,1725720645073,-620.07,0.00014999,2]
[337502888,1725720645083,-500.0,0.00014999,2]
[337502890,1725720645093,-500.0,0.00014999,2]
[337502893,1725720645103,-500.0,0.00014999,2]
[337502895,1725720645114,-500.0,0.00014999,2]
[337502897,1725720645125,-500.0,0.00014999,2]
[337502899,1725720645135,-551.07095499,0.00014999,2]
[337502901,1725720645145,-1983.63,0.00014999,2]
[337502903,1725720645155,-1983.63,0.00014999,2]
[337502905,1725720645166,-1983.63,0.00014999,2]
[337502907,1725720645177,-1983.63,0.00014999,2]
[337502909,1725720645187,-1983.63,0.00014999,2]
[337502911,1725720645197,-1983.63,0.00014999,2]
[337502913,1725720645206,-1983.63,0.00014999,2]
[337502915,1725720645216,-500.0,0.00014999,2]
[337502917,1725720645226,-1983.63,0.00014999,2]
[337502919,1725720645236,-500.0,0.00014999,2]
[337502921,1725720645245,-1983.63,0.00014999,2]
[337502923,1725720645255,-500.0,0.00014999,2]
[337502925,1725720645264,-1983.63,0.00014999,2]
[337502927,1725720645273,-500.0,0.00014999,2]
[337502929,1725720645283,-500.0,0.00014999,2]
[337502931,1725720645292,-1983.63,0.00014999,2]
[337502933,1725720645302,-500.0,0.00014999,2]
[337502935,1725720645311,-1983.63,0.00014999,2]
[337502937,1725720645320,-500.0,0.00014999,2]
[337502939,1725720645329,-1983.63,0.00014999,2]
[337502941,1725720645338,-500.0,0.00014999,2]
[337502943,1725720645348,-1983.63,0.00014999,2]
[337502945,1725720645357,-500.0,0.00014999,2]
[337502947,1725720645366,-1983.63,0.00014999,2]
[337502949,1725720645376,-500.0,0.00014999,2]
[337502951,1725720645385,-1983.63,0.00014999,2]
[337502952,1725720645394,-500.0,0.00014999,2]
[337502954,1725720645404,-1983.63,0.00014999,2]
[337502956,1725720645413,-607.45,0.00014999,2]
[337502958,1725720645423,-1983.63,0.00014999,2]
[337502960,1725720645433,-1983.63,0.00014999,2]
[337502962,1725720645444,-1983.63,0.00014999,2]
[337502964,1725720645453,-1983.8,0.00014999,2]
[337502966,1725720645463,-500.0,0.00014999,2]
[337502968,1725720645473,-500.0,0.00014999,2]
[337502970,1725720645482,-645.57,0.00014999,2]
[337502972,1725720645492,-500.0,0.00014999,2]
[337502974,1725720645502,-500.0,0.00014999,2]
[337502976,1725720645512,-500.0,0.00014999,2]
[337502978,1725720645523,-500.0,0.00014999,2]
[337502980,1725720645533,-500.0,0.00014999,2]
[337502982,1725720645542,-500.0,0.00014999,2]
[337502984,1725720645552,-500.0,0.00014999,2]
[337502986,1725720645568,-500.0,0.00014999,2]
[337502988,1725720645577,-500.0,0.00014999,2]
[337502990,1725720645587,-500.0,0.00014999,2]
[337502992,1725720645596,-500.0,0.00014999,2]
[337502994,1725720645605,-306.01707957,0.00014999,2]
[337502996,1725720645614,-511.95,0.00014999,2]
[337502998,1725720645623,-511.95,0.00014999,2]
[337503000,1725720645632,-511.95,0.00014999,2]
[337503002,1725720645642,-511.95,0.00014999,2]
[337503006,1725720645651,-511.95,0.00014999,2]
[337503008,1725720645660,-511.95,0.00014999,2]
[337503010,1725720645669,-511.95,0.00014999,2]
[337503012,1725720645679,-511.95,0.00014999,2]
[337503014,1725720645688,-511.95,0.00014999,2]
[337503016,1725720645698,-511.95,0.00014999,2]
[337503018,1725720645708,-511.95,0.00014999,2]
[337503020,1725720645718,-511.95,0.00014999,2]
[337503022,1725720645727,-511.95,0.00014999,2]
[337503024,1725720645739,-511.95,0.00014999,2]
[337503026,1725720645748,-511.95,0.00014999,2]
[337503028,1725720645758,-511.95,0.00014999,2]
[337503030,1725720645767,-511.95,0.00014999,2]
[337503032,1725720645777,-511.95,0.00014999,2]
[337503034,1725720645788,-511.95,0.00014999,2]
[337503036,1725720645798,-511.95,0.00014999,2]
[337503039,1725720645809,-512.15,0.00014999,2]
[337503041,1725720645818,-500.0,0.00014999,2]
[337503043,1725720645827,-500.0,0.00014999,2]
[337503045,1725720645837,-500.0,0.00014999,2]
[337503047,1725720645846,-500.0,0.00014999,2]
[337503049,1725720645855,-500.0,0.00014999,2]
[337503051,1725720645865,-500.0,0.00014999,2]
[337503053,1725720645875,-500.0,0.00014999,2]
[337503055,1725720645885,-500.0,0.00014999,2]
[337503057,1725720645895,-500.0,0.00014999,2]
[337503059,1725720645905,-500.0,0.00014999,2]
[337503061,1725720645916,-500.0,0.00014999,2]
[337503063,1725720645926,-500.0,0.00014999,2]
[337503065,1725720645936,-500.0,0.00014999,2]
[337503067,1725720645947,-500.0,0.00014999,2]
[337503069,1725720645957,-500.0,0.00014999,2]
[337503071,1725720645968,-500.0,0.00014999,2]
[337503073,1725720645982,-500.0,0.00014999,2]
[337503075,1725720645993,-500.0,0.00014999,2]
[337503077,1725720646003,-500.0,0.00014999,2]
[337503079,1725720646015,-500.0,0.00014999,2]
[337503081,1725720646024,-500.0,0.00014999,2]
[337503083,1725720646037,-500.0,0.00014999,2]
[337503086,1725720646051,-500.0,0.00014999,2]
[337503088,1725720646066,-500.0,0.00014999,2]
[337503090,1725720646078,-500.0,0.00014999,2]
[337503093,1725720646091,-500.0,0.00014999,2]
[337503095,1725720646103,-500.0,0.00014999,2]
[337503097,1725720646113,-500.0,0.00014999,2]
[337503099,1725720646124,-248.02,0.00014999,2]
[337503101,1725720646135,-232.47273175,0.00014999,2]
[337503103,1725720646146,-959.66,0.00014999,2]
[337503105,1725720646158,-500.0,0.00014999,2]
[337503107,1725720646169,-959.66,0.00014999,2]
[337503109,1725720646181,-500.0,0.00014999,2]
[337503111,1725720646194,-959.66,0.00014999,2]
[337503113,1725720646206,-500.0,0.00014999,2]
[337503115,1725720646219,-959.66,0.00014999,2]
[337503117,1725720646232,-500.0,0.00014999,2]
[337503119,1725720646244,-959.66,0.00014999,2]
[337503121,1725720646256,-500.0,0.00014999,2]
[337503123,1725720646268,-959.66,0.00014999,2]
[337503126,1725720646279,-500.0,0.00014999,2]
[337503128,1725720646291,-226.44,0.00014999,2]
[337503130,1725720646303,-959.66,0.00014999,2]
[337503132,1725720646315,-959.66,0.00014999,2]
[337503134,1725720646327,-959.66,0.00014999,2]
[337503136,1725720646338,-959.66,0.00014999,2]
[337503138,1725720646350,-959.66,0.00014999,2]
[337503140,1725720646360,-959.66,0.00014999,2]
[337503143,1725720646371,-959.66,0.00014999,2]
[337503144,1725720646381,-959.66,0.00014999,2]
[337503147,1725720646393,-959.66,0.00014999,2]
[337503149,1725720646405,-959.66,0.00014999,2]
[337503151,1725720646416,-959.66,0.00014999,2]
[337503152,1725720646428,-959.66,0.00014999,2]
[337503154,1725720646440,-959.66,0.00014999,2]
[337503156,1725720646451,-959.66,0.00014999,2]
[337503159,1725720646464,-959.66,0.00014999,2]
[337503161,1725720646476,-959.84,0.00014999,2]
[337503163,1725720646488,-247.62511432,0.00015,2]
[337503165,1725720646500,-63366.26658806,0.00015,2]
[337503168,1725720646525,-215039.92691491,0.00015,2]
[337503170,1725720646539,-164854.00956765,0.00015,2]
[337503172,1725720646550,-179621.07789545,0.00015,2]
[337503174,1725720646564,-3380.13510885,0.00015,2]
[337503176,1725720646576,-323.21934277,0.00015,2]
[337503178,1725720646589,-331.44623355,0.00015,2]
[337503181,1725720646605,-382.13804891,0.00015,2]
[337503183,1725720646621,-2586.02150144,0.00015,2]
[337503185,1725720646634,-1048.582763,0.00015,2]
[337503187,1725720646648,-846.52210567,0.00015,2]
[337503189,1725720646660,-154517.17871167,0.00015,2]
[337503192,1725720646674,-4503.46066958,0.00015,2]
[337503194,1725720646688,-16277.64934177,0.00015,2]
[337503196,1725720646704,-384.644286,0.00015,2]
[337503199,1725720646718,-1983.76002468,0.00015,2]
[337503201,1725720646731,-9894.76560632,0.00015,2]
[337503207,1725720646813,-1789.29207492,0.000149,2]
[337503208,1725720646827,-211.25316391,0.000149,2]
[337503209,1725720646838,-19487.17334179,0.00015,2]
[337503210,1725720646850,-370.54106705,0.00015,2]
[337503211,1725720646863,-677.73625,0.00015,2]
[337503212,1725720646876,-9291.90965979,0.00015,2]
[337503213,1725720646889,-1838.78,0.00015,2]
[337503214,1725720646902,-737.99988251,0.00015,2]
[337503215,1725720646922,-361.86436884,0.00015,2]
[337503216,1725720648018,-1137.88598791,0.00015,2]
[337503217,1725720648031,-5400.0,0.00015,2]
[337503218,1725720648042,-1113.8701207,0.00015,2]
[337503219,1725720648053,-298.93134934,0.00015,2]
[337503220,1725720648067,-7488.03175676,0.00015,2]
[337503221,1725720648078,-2380.27109026,0.00015,2]
[337503222,1725720648090,-1598.31428799,0.00015,2]
[337503223,1725720648101,-735.896,0.00015,2]
[337503224,1725720648112,-10988.3773015,0.00015,2]
[337503225,1725720648191,-719.74757436,0.000149,2]
[337503226,1725720648201,-3252.58623925,0.00015,2]
[337503227,1725720648212,-432.00902886,0.00015,2]
[337503228,1725720648223,-438.217861,0.00015,2]
[337503229,1725720648234,-3911.63695072,0.00015,2]
[337503230,1725720648245,-17189.36167256,0.00015,2]
[337503231,1725720648256,-557.8322401,0.00015,2]
[337503232,1725720648267,-685.11662691,0.00015,2]
[337503233,1725720648278,-312.64,0.00015,2]
[337503234,1725720648290,-10391.97917367,0.00015,2]
[337503235,1725720648300,-873.74712415,0.00015,2]
[337503236,1725720648312,-626.08111507,0.00015,2]
[337503237,1725720648323,-117698.75954279,0.00015,2]
[337503238,1725720648335,-618.3903605,0.00015,2]
[337503239,1725720648346,-550.0,0.00015,2]
[337503240,1725720648357,-5022.72191446,0.00015,2]
[337503241,1725720648368,-1269.0,0.00015,2]
[337503242,1725720648379,-2133.07562019,0.00015,2]
[337503243,1725720648390,-400.0,0.00015,2]
[337503244,1725720648401,-4999.62043342,0.00015,2]
[337503245,1725720648416,-2420.86061955,0.00015,2]
[337503246,1725720648427,-879.9737992,0.00015,2]
[337503247,1725720648438,-4050.58204498,0.00015,2]
[337503248,1725720648449,-5498.94813562,0.00015,2]
[337503249,1725720648460,-3690.46625153,0.00015,2]
[337503250,1725720648470,-805.58226419,0.00015,2]
[337503251,1725720648481,-951.92253073,0.00015,2]
[337503252,1725720648493,-674.79429573,0.00015,2]
[337503253,1725720648504,-586.01882649,0.00015,2]
[337503254,1725720648515,-10152.93128189,0.00015,2]
[337503255,1725720648526,-10164.3352765,0.00015,2]
[337503256,1725720648537,-2283.42218229,0.00015,2]
[337503257,1725720648548,-1401.42201098,0.00015,2]
[337503258,1725720648559,-675.75650086,0.00015,2]
[337503259,1725720648580,-7593.45532814,0.00015,2]
[337503260,1725720648591,-1415.44956061,0.00015,2]
[337503261,1725720648602,-493.70431179,0.00015,2]
[337503262,1725720648613,-481.61185414,0.00015,2]
[337503264,1725721339489,166.94,0.00010959,2]
[337503275,1725721832002,-154.23,0.00012017,2]
[337503276,1725721832014,-150.0,0.00013872,2]
[337503277,1725721832024,-250.0,0.00013872,2]
[337503278,1725721832034,-250.0,0.0001388,2]
[337503279,1725721832044,-187.01,0.00013931,2]
[337503280,1725721832053,-179.59,0.00013978,2]
[337503281,1725721832063,-505.29452515,0.00014105,2]
[337503282,1725721832075,-494.70547485,0.00014105,2]
[337503283,1725721832084,-150.0,0.00014242,2]
[337503284,1725721832094,-328.54,0.0001427,2]
[337503285,1725721832104,-300.0,0.00014395,2]
[337503286,1725721832113,-307.1,0.00014396,2]
[337503287,1725721832123,-289.0,0.00014396,2]
[337503288,1725721832132,-983.39935755,0.00014396,2]
[337503289,1725721832144,-160.60064245,0.00014396,2]
[337503290,1725721832153,-1470.23709116,0.00014396,2]
[337503291,1725721832170,-1285.70283055,0.00014396,2]
[337503292,1725721832182,-357.46371413,0.00014396,2]
[337503293,1725721832232,-1152.75568561,0.00014396,2]
[337503294,1725721832243,-1587.84067855,0.00014396,2]
[337503295,1725721832252,-92.7383507,0.00014396,2]
[337503296,1725721832267,-293.41476327,0.00014396,2]
[337503297,1725721832278,-2248.6741294,0.00014396,2]
[337503298,1725721832291,-600.70902,0.00014396,2]
[337503299,1725721832302,-628.42,0.00014396,2]
[337503300,1725721832314,-2657.26473663,0.00014396,2]
[337503302,1725721832323,-150.0,0.000144,2]
[337503304,1725721832333,-150.0,0.000144,2]
[337503305,1725721832342,-154.23,0.00014406,2]
[337503307,1725721832352,-150.0,0.000146,2]
[337503309,1725721832362,-150.0,0.00014613,2]
[337503311,1725721832375,-500.0,0.00014794,2]
[337503313,1725721832384,-150.0,0.00014899,2]
[337503315,1725721832394,-155.95248361,0.000149,2]
[337503317,1725721832403,-2000.54523883,0.000149,2]
[337503319,1725721832413,-359.87378719,0.000149,2]
[337503320,1725721832423,-500.0,0.00014973,2]
[337503322,1725721832432,-500.0,0.00014973,2]
[337503324,1725721832442,-1493.91153207,0.00014973,2]
[337503326,1725721832455,-130.27046793,0.00014973,2]
[337503328,1725721832464,-459.62,0.00014973,2]
[337503329,1725721832474,-150.0,0.00014983,2]
[337503331,1725721832483,-500.0,0.00014997,2]
[337503333,1725721832493,-500.0,0.00014998,2]
[337503335,1725721832502,-279.08843773,0.00014999,2]
[337503337,1725721832516,-224.10211161,0.00014999,2]
[337503338,1725721832525,-512.43888936,0.00014999,2]
[337503340,1725721832535,-505.2624464,0.00014999,2]
[337503342,1725721832544,-500.0,0.00014999,2]
[337503344,1725721832553,-505.74280742,0.00014999,2]
[337503346,1725721832563,-83.77929903,0.00014999,2]
[337503348,1725721832575,-416.22070097,0.00014999,2]
[337503350,1725721832585,-8.29293455,0.00014999,2]
[337503367,1725721838021,-569.60648406,0.00014999,2]
[337503369,1725721838031,-507.10332045,0.00014999,2]
[337503370,1725721838042,-504.26380991,0.00014999,2]
[337503371,1725721838053,-585.00552819,0.00014999,2]
[337503372,1725721838235,-500.0,0.00014999,2]
[337503373,1725721838247,-500.0,0.00014999,2]
[337503374,1725721838257,-500.0,0.00014999,2]
[337503375,1725721838267,-500.0,0.00014999,2]
[337503376,1725721838279,-500.0,0.00014999,2]
[337503377,1725721838289,-500.0,0.00014999,2]
[337503378,1725721838298,-321.86,0.00014999,2]
[337503379,1725721838307,-500.0,0.00014999,2]
[337503380,1725721838316,-373.66,0.00014999,2]
[337503381,1725721838325,-500.0,0.00014999,2]
[337503382,1725721838334,-500.0,0.00014999,2]
[337503383,1725721838342,-500.0,0.00014999,2]
[337503384,1725721838351,-500.0,0.00014999,2]
[337503385,1725721838361,-500.0,0.00014999,2]
[337503386,1725721838375,-310.66,0.00014999,2]
[337503387,1725721838384,-500.0,0.00014999,2]